lending/lending_fUSD_20240509
["ID","MTS","AMOUNT","RATE_DAILY","PERIOD"]
[326695594,1715257842482,-8978.62257048,0.000299,2]
[326695595,1715257842492,-155.49233039,0.00029961,2]
[326695596,1715257842501,-338.5667399,0.00029979,2]
[326695597,1715257842510,-338.5667399,0.00029979,2]
[326695598,1715257842520,-3387.3235508,0.00029979,2]
[326695599,1715257842530,-3387.3235508,0.00029979,2]
[326695600,1715257842540,-50000.0,0.0003,10]
[326695601,1715257842551,-1343.0952952,0.0003,7]
[326695602,1715257842560,-27663.84914796,0.0003,4]
[326695603,1715257842569,-3101.18270151,0.0003,10]
[326695604,1715257842579,-8116.35531393,0.0003,2]
[326695605,1715257842589,-950.15625894,0.0003,4]
[326695606,1715257842599,-2000.0,0.0003,2]
[326695607,1715257842608,-10096.34501885,0.0003,7]
[326695608,1715257842618,-953573.52237402,0.0003,5]
[326695614,1715257843007,-1685150.55434767,0.0003,5]
[326695615,1715257843019,-1068.28471831,0.0003,5]
[326695616,1715257843031,-540.396828,0.0003,5]
[326695617,1715257843043,-499.40807414,0.0003,5]
[326695618,1715257843056,-1021.7729625,0.0003,5]
[326695633,1715257844380,-2000.0,0.00021918,2]
[326695634,1715257844390,-152.19312067,0.000249,2]
[326695635,1715257844400,-10.38989933,0.00025345,2]
[326695636,1715257844412,-141.80322132,0.00025345,2]
[326695637,1715257844422,-152.19312065,0.0002579,2]
[326695638,1715257844433,-150.0,0.00027429,2]
[326695639,1715257844442,-150.0,0.00027431,2]
[326695640,1715257844451,-150.0,0.00027436,2]
[326695641,1715257844461,-79.01241159,0.00027439,2]
[326695642,1715257844472,-70.98758841,0.00027439,2]
[326695643,1715257844481,-150.0,0.0002744,2]
[326695644,1715257844491,-150.0,0.0002744,2]
[326695645,1715257844500,-150.0,0.00027441,2]
[326695646,1715257844509,-150.0,0.00027447,2]
[326695647,1715257844519,-63.72107323,0.00027455,2]
[326695648,1715257844630,-152.19312065,0.00026236,2]
[326695649,1715257844640,-134.70187945,0.00026681,2]
[326695650,1715257845103,-17.4912412,0.00026681,2]
[326695651,1715257845112,-152.19312065,0.00027126,2]
[326695652,1715257845123,-86.27892677,0.00027455,2]
[326695653,1715257845132,-150.0,0.00027456,2]
[326695654,1715257845141,-150.0,0.00027456,2]
[326695655,1715257845151,-150.0,0.00027457,2]
[326695656,1715257845160,-150.0,0.0002746,2]
[326695657,1715257845169,-150.0,0.00027461,2]
[326695658,1715257845178,-150.0,0.00027463,2]
[326695659,1715257845188,-150.0,0.00027464,2]
[326695660,1715257845197,-150.0,0.00027467,2]
[326695661,1715257845207,-150.0,0.00027468,2]
[326695662,1715257845216,-150.0,0.00027481,2]
[326695663,1715257845225,-150.0,0.00027482,2]
[326695664,1715257845234,-150.0,0.00027483,2]
[326695665,1715257845244,-150.0,0.00027484,2]
[326695666,1715257845253,-150.0,0.00027486,2]
[326695667,1715257845262,-150.0,0.00027488,2]
[326695668,1715257845272,-150.0,0.00027493,2]
[326695669,1715257845282,-150.0,0.000275,2]
[326695670,1715257845292,-150.0,0.00027504,2]
[326695671,1715257845301,-150.0,0.00027505,2]
[326695672,1715257845313,-150.0,0.00027505,2]
[326695673,1715257845322,-150.0,0.00027509,2]
[326695674,1715257845331,-150.0,0.00027512,2]
[326695675,1715257845341,-150.0,0.00027513,2]
[326695676,1715257845352,-150.0,0.00027515,2]
[326695677,1715257845362,-150.0,0.00027518,2]
[326695678,1715257845371,-150.0,0.00027519,2]
[326695679,1715257845380,-150.0,0.00027527,2]
[326695680,1715257845390,-150.0,0.00027528,2]
[326695681,1715257845400,-150.0,0.00027528,2]
[326695682,1715257845410,-150.0,0.00027528,2]
[326695683,1715257845420,-150.0,0.00027532,2]
[326695684,1715257845429,-150.0,0.00027533,2]
[326695685,1715257845439,-150.0,0.00027533,2]
[326695686,1715257845449,-150.0,0.00027534,2]
[326695687,1715257845458,-150.0,0.00027536,2]
[326695688,1715257845467,-150.0,0.00027538,2]
[326695689,1715257845477,-150.0,0.00027542,2]
[326695690,1715257845487,-150.0,0.00027548,2]
[326695691,1715257845496,-150.0,0.0002755,2]
[326695692,1715257845506,-150.0,0.00027553,2]
[326695693,1715257845515,-150.0,0.00027554,2]
[326695694,1715257845525,-150.0,0.00027555,2]
[326695695,1715257845535,-150.0,0.00027555,2]
[326695696,1715257845546,-150.0,0.0002756,2]
[326695697,1715257845557,-150.0,0.00027561,2]
[326695698,1715257845567,-150.0,0.00027568,2]
[326695699,1715257845577,-150.0,0.0002757,2]
[326695700,1715257845586,-152.19312065,0.00027571,2]
[326695701,1715257845596,-150.0,0.00027572,2]
[326695702,1715257845606,-150.0,0.00027572,2]
[326695703,1715257845616,-150.0,0.00027572,2]
[326695704,1715257845625,-150.0,0.00027573,2]
[326695705,1715257845635,-150.0,0.00027574,2]
[326695706,1715257845645,-150.0,0.00027576,2]
[326695707,1715257845655,-150.0,0.00027581,2]
[326695708,1715257845666,-150.0,0.00027589,2]
[326695709,1715257845675,-150.0,0.00027591,2]
[326695710,1715257845686,-150.0,0.00027592,2]
[326695711,1715257845695,-150.0,0.00027595,2]
[326695712,1715257845705,-150.0,0.00027595,2]
[326695713,1715257845715,-150.0,0.00027599,2]
[326695714,1715257845725,-150.0,0.000276,2]
[326695715,1715257845734,-150.0,0.00027605,2]
[326695716,1715257845744,-150.0,0.00027609,2]
[326695717,1715257845753,-150.0,0.00027613,2]
[326695718,1715257845764,-150.0,0.00027622,2]
[326695719,1715257845774,-150.0,0.00027622,2]
[326695720,1715257845783,-150.0,0.00027629,2]
[326695721,1715257845793,-150.0,0.0002763,2]
[326695722,1715257845803,-150.0,0.0002763,2]
[326695723,1715257845813,-150.0,0.00027632,2]
[326695724,1715257845822,-150.0,0.00027636,2]
[326695725,1715257845832,-150.0,0.0002764,2]
[326695726,1715257845841,-150.0,0.00027643,2]
[326695727,1715257845851,-150.0,0.0002765,2]
[326695728,1715257845860,-150.0,0.00027656,2]
[326695729,1715257845870,-150.0,0.00027657,2]
[326695730,1715257845880,-150.0,0.00027667,2]
[326695731,1715257845890,-150.0,0.00027668,2]
[326695732,1715257845899,-150.0,0.00027669,2]
[326695733,1715257845909,-150.0,0.00027673,2]
[326695734,1715257845918,-150.0,0.00027675,2]
[326695735,1715257845927,-150.0,0.00027683,2]
[326695736,1715257845937,-150.0,0.0002769,2]
[326695737,1715257845946,-150.0,0.00027693,2]
[326695738,1715257845956,-150.0,0.00027693,2]
[326695739,1715257845965,-150.0,0.00027693,2]
[326695740,1715257845975,-150.0,0.00027695,2]
[326695741,1715257845985,-150.0,0.00027696,2]
[326695742,1715257845994,-150.0,0.00027697,2]
[326695743,1715257846004,-150.0,0.00027698,2]
[326695744,1715257846013,-150.0,0.00027698,2]
[326695745,1715257846022,-152.19312065,0.00028016,2]
[326695746,1715257846032,-152.19312065,0.00028461,2]
[326695747,1715257846194,-152.19312065,0.00028907,2]
[326695748,1715257846203,-523.22,0.00029178,2]
[326695749,1715257846213,-420.08,0.00029178,2]
[326695750,1715257846222,-673.0,0.00029611,5]
[326695751,1715257846231,-4680.47845023,0.000299,2]
[326695752,1715257846240,-290599.06129806,0.0003,5]
[326695753,1715257846252,-20868.48,0.0003,5]
[326695754,1715257846264,-404.75808895,0.0003,5]
[326695755,1715257846278,-278.16548255,0.0003,5]
[326695756,1715257846289,-500.0,0.0003,5]
[326695757,1715257846300,-6566.00597246,0.0003,5]
[326695758,1715257846314,-422.14737902,0.0003,5]
[326695759,1715257846325,-622.04026574,0.0003,5]
[326695760,1715257846336,-1995.34,0.0003,5]
[326695761,1715257846347,-287.14684292,0.0003,5]
[326695762,1715257846361,-5240.08156891,0.0003,5]
[326695768,1715257846813,-150.0,0.00027463,2]
[326695769,1715257846822,-150.0,0.00027481,2]
[326695770,1715257846832,-150.0,0.00027588,2]
[326695771,1715257846841,-4.68489641,0.00027814,2]
[326695772,1715257846852,-145.31510359,0.00027814,2]
[326695773,1715257846862,-150.0,0.00028162,2]
[326695774,1715257846872,-150.0,0.00028739,2]
[326695775,1715257846882,-150.0,0.00028747,2]
[326695776,1715257846891,-150.0,0.00028819,2]
[326695777,1715257846900,-150.0,0.0002883,2]
[326695778,1715257846910,-150.0,0.0002896,2]
[326695779,1715257846919,-150.0,0.00029178,2]
[326695780,1715257846928,-351.25,0.00029178,2]
[326695781,1715257846938,-150.0,0.00029178,2]
[326695782,1715257846947,-152.19312065,0.00029352,2]
[326695783,1715257846956,-150.0,0.00029432,2]
[326695784,1715257846966,-150.0,0.00029483,2]
[326695785,1715257846976,-150.0,0.00029579,2]
[326695786,1715257846985,-150.0,0.0002971,2]
[326695787,1715257846995,-150.0,0.00029718,2]
[326695788,1715257847004,-150.0,0.00029756,2]
[326695789,1715257847014,-150.0,0.00029783,2]
[326695790,1715257847023,-152.19312065,0.00029797,2]
[326695791,1715257847032,-150.0,0.00029802,2]
[326695792,1715257847042,-150.0,0.00029804,2]
[326695793,1715257847051,-150.0,0.00029807,2]
[326695794,1715257847060,-150.0,0.00029826,2]
[326695795,1715257847070,-150.0,0.00029843,2]
[326695796,1715257847079,-150.0,0.00029854,2]
[326695797,1715257847088,-150.0,0.00029875,2]
[326695798,1715257847097,-150.0,0.00029886,2]
[326695799,1715257847109,-150.0,0.00029887,2]
[326695800,1715257847119,-150.0,0.00029893,2]
[326695801,1715257847128,-150.0,0.00029926,2]
[326695802,1715257847137,-150.0,0.00029936,2]
[326695803,1715257847147,-150.0,0.00029961,2]
[326695804,1715257847156,-150.0,0.00029966,2]
[326695805,1715257847165,-150.0,0.00029967,2]
[326695806,1715257847174,-150.0,0.00029978,2]
[326695807,1715257847184,-150.0,0.00029983,2]
[326695808,1715257847193,-4322.36299411,0.0003,5]
[326695809,1715257847205,-636.4,0.0003,5]
[326695810,1715257847216,-3284.0799962,0.0003,5]
[326695811,1715257847795,-500.0,0.000277,2]
[326695812,1715257847806,-16.2379924,0.0003,5]
[326695813,1715257847818,-466.98336431,0.0003,5]
[326698423,1715258463528,159.22,0.00024672,120]
[326699155,1715259032201,-515.6795376,0.00012695,2]
[326699158,1715259032211,-179.67796345,0.00012696,2]
[326699160,1715259032222,-150.0,0.00012877,2]
[326699163,1715259032234,-150.0,0.00012897,2]
[326699167,1715259032243,-150.0,0.00012897,2]
[326699171,1715259032253,-12131.52435993,0.000129,2]
[326699174,1715259032265,-756.03810701,0.000129,2]
[326699176,1715259032276,-803.60000004,0.000129,2]
[326699179,1715259032300,-4090.78063302,0.000129,2]
[326699180,1715259032310,-172.4746835,0.000129,2]
[326699181,1715259032319,-1475.02836297,0.000129,2]
[326699182,1715259032331,-359.16532702,0.000129,2]
[326699183,1715259032343,-163335.18371001,0.000129,2]
[326699184,1715259032353,-179.02628781,0.000129,2]
[326699185,1715259032362,-1000.0,0.000129,2]
[326699186,1715259032372,-3084.64126091,0.000129,2]
[326699187,1715259032382,-2034.29038496,0.000129,2]
[326699188,1715259032392,-652.83851258,0.000129,2]
[326699189,1715259032401,-2059.0880387,0.000129,2]
[326699190,1715259032411,-1731.46937187,0.000129,2]
[326699191,1715259032421,-324.9511024,0.000129,2]
[326699192,1715259032431,-425.91573532,0.0001299,2]
[326699193,1715259032441,-425.91573532,0.0001299,2]
[326699194,1715259032451,-425.91573532,0.0001299,2]
[326699195,1715259032460,-150.23,0.0001299,2]
[326699196,1715259032470,-150.23,0.0001299,2]
[326699197,1715259032480,-150.23,0.0001299,2]
[326699198,1715259032489,-150.23,0.0001299,2]
[326699199,1715259032499,-150.23,0.0001299,2]
[326699200,1715259032508,-150.23,0.0001299,2]
[326699201,1715259032520,-150.23,0.0001299,2]
[326699202,1715259032530,-70022.61081809,0.00013,2]
[326699203,1715259032542,-1457.69298297,0.00013,2]
[326699204,1715259032553,-295.44814184,0.00013,2]
[326699205,1715259032566,-246774.80995656,0.00013,2]
[326699206,1715259032578,-5950.0,0.00013,2]
[326699207,1715259032589,-129640.37112341,0.00013,2]
[326699208,1715259032602,-677570.55258818,0.00013,2]
[326699209,1715259032613,-415.09721781,0.00013,2]
[326699210,1715259032625,-12126.8626147,0.00013,2]
[326699212,1715259038170,-867.74443053,0.00013,2]
[326699216,1715259038182,-1848.042,0.00013,2]
[326699217,1715259038193,-21549.2964781,0.00013,2]
[326699218,1715259040351,-263.61885156,0.000129,2]
[326699220,1715259040362,-1282.26236001,0.00013,2]
[326699221,1715259041540,-726.27811444,0.00013,2]
[326699223,1715259041553,-2900.0,0.00013,2]
[326699224,1715259041567,-1027.39161084,0.00013,2]
[326699225,1715259043111,-832.73036486,0.00013,2]
[326699228,1715259043123,-735.95,0.00013,2]
[326699232,1715259043137,-904749.79828354,0.00013,2]
[326699236,1715259043150,-33366.66878404,0.00013,2]
[326699468,1715259045450,-200.97588817,0.000129,2]
[326699471,1715259045460,-168.90881345,0.00013,2]
[326699473,1715259045471,-656.35,0.00013,2]
[326699495,1715259046747,-440.74979347,0.00013,2]
[326699497,1715259046760,-466.70474391,0.00013,2]
[326699498,1715259046771,-2303.75270085,0.00013,2]
[326699499,1715259046783,-15416.31271465,0.00013,2]
[326699500,1715259046795,-41986.39977451,0.00013,2]
[326699501,1715259046807,-31715.73820004,0.00013,2]
[326699502,1715259046818,-62013.51984336,0.00013,2]
[326699503,1715259046830,-302967.17977814,0.00013,2]
[326699504,1715259046842,-58916.13056384,0.00013,2]
[326699505,1715259046853,-3269.17502,0.00013,2]
[326699506,1715259046864,-870.21266315,0.00013,2]
[326699507,1715259046876,-1471.2205633,0.00013,2]
[326699508,1715259047129,-16747.61242291,0.00013,2]
[326699509,1715259047141,-573.43013765,0.00013,2]
[326699510,1715259047153,-2017.62724224,0.00013,2]
[326699511,1715259047164,-585.79333653,0.00013,2]
[326699512,1715259047175,-417.92107087,0.00013,2]
[326699513,1715259047186,-4247.25,0.00013,2]
[326699514,1715259047197,-1537.85,0.00013,2]
[326699522,1715259501097,171.13,0.00024713,120]
[326699924,1715260232725,-515.6795376,0.00012896,2]
[326699925,1715260232735,-150.0,0.00012897,2]
[326699926,1715260232745,-150.0,0.00012897,2]
[326699928,1715260232755,-2267.9704624,0.00012899,2]
[326699929,1715260232766,-317.625,0.00012899,2]
[326699930,1715260232778,-163.14237793,0.00012899,2]
[326699931,1715260232788,-500.0,0.000129,2]
[326699932,1715260232797,-271.97412218,0.000129,2]
[326699934,1715260232809,-372.13997782,0.000129,2]
[326699935,1715260232819,-1283.353457,0.000129,2]
[326699936,1715260232830,-28817.409043,0.000129,2]
[326699937,1715260232839,-15068.55504933,0.000129,2]
[326700049,1715260238161,-1168.02325067,0.000129,2]
[326700052,1715260238171,-1269.9693,0.000129,2]
[326700053,1715260238182,-1219.461,0.000129,2]
[326700054,1715260238192,-365.26303373,0.000129,2]
[326700055,1715260238204,-1149.77266663,0.000129,2]
[326700056,1715260238214,-319.24661054,0.000129,2]
[326700058,1715260238223,-1864.76618625,0.000129,2]
[326700059,1715260238233,-212.95786766,0.0001299,2]
[326700060,1715260238242,-90.46184574,0.0001299,2]
[326700061,1715260238254,-122.49602192,0.0001299,2]
[326700063,1715260238265,-4676.16532223,0.00012998,2]
[326700064,1715260238274,-4999.19673866,0.00013,2]
[326700065,1715260238286,-1247.2162014,0.00013,2]
[326700066,1715260238297,-578.89548,0.00013,2]
[326700088,1715260239408,-16640.1835219,0.00013,2]
[326700089,1715260239421,-2210.49391613,0.00013,2]
[326700090,1715260239434,-544.49802541,0.00013,2]
[326700092,1715260239446,-2470.43890567,0.00013,2]
[326700093,1715260239459,-715.5495421,0.00013,2]
[326700094,1715260239472,-383.65,0.00013,2]
[326700095,1715260239486,-261.9,0.00013,2]
[326700097,1715260239498,-849.33,0.00013,2]
[326700098,1715260239511,-325.82,0.00013,2]
[326700099,1715260239523,-1092.08755053,0.00013,2]
[326700112,1715260240996,-84220.49442443,0.00013,2]
[326700114,1715260241035,-658.89701571,0.00013,2]
[326700115,1715260241517,-4243.11683849,0.00013,2]
[326700420,1715261433661,-157.54570993,0.00012714,2]
[326700422,1715261433671,-1379.25419276,0.00012714,2]
[326700424,1715261433681,-515.6795376,0.00012715,2]
[326700425,1715261433691,-536.95226347,0.00012715,2]
[326700426,1715261433701,-289.66996472,0.00012716,2]
[326700427,1715261433711,-1246.86092123,0.00012716,2]
[326700428,1715261433720,-159.71369038,0.00012733,2]
[326700429,1715261433730,-1163.57,0.00012793,2]
[326700430,1715261433740,-155.0,0.00012898,2]
[326700431,1715261433750,-150.0,0.00012898,2]
[326700432,1715261433760,-6753.83855717,0.00012899,2]
[326700433,1715261433770,-248.0036,0.000129,2]
[326700434,1715261433780,-315.44361594,0.000129,2]
[326700435,1715261433790,-250.0,0.00012942,2]
[326700436,1715261433800,-464.53,0.00012942,2]
[326700437,1715261433811,-403.04,0.00012942,2]
[326700438,1715261433821,-1082.79,0.00012942,2]
[326700439,1715261433831,-2528.0928301,0.00012987,2]
[326700440,1715261433840,-4661.46,0.00012987,2]
[326700441,1715261433850,-499.99,0.0001299,2]
[326700442,1715261433859,-150.99,0.0001299,2]
[326700443,1715261433869,-1030.38846551,0.0001299,2]
[326700444,1715261433878,-212.95786766,0.0001299,2]
[326700445,1715261433888,-2358.78776413,0.00012998,2]
[326700446,1715261433897,-165.95926671,0.00012998,2]
[326700447,1715261433906,-223.65370089,0.00012998,2]
[326700448,1715261433915,-999.99,0.00012998,2]
[326700449,1715261433924,-1946.86,0.00012998,2]
[326700450,1715261433933,-312.6,0.00012998,2]
[326700451,1715261433942,-323.86893567,0.00012999,2]
[326700452,1715261433951,-155.0,0.00012999,2]
[326700453,1715261433961,-155.0,0.00012999,2]
[326700454,1715261433970,-48378.5138879,0.00013,2]
[326700455,1715261433982,-158097.05853974,0.00013,2]
[326700456,1715261435888,-10593.59903926,0.00013,2]
[326700469,1715261441651,-3380.44659336,0.00013,2]
[326700470,1715261441664,-4603.30914144,0.00013,2]
[326700471,1715261441676,-500.6643648,0.00013,2]
[326700472,1715261441702,-1408.27085472,0.00013,2]
[326700473,1715261441714,-72959.14744626,0.00013,2]
[326700474,1715261441727,-3742.25394438,0.00013,2]
[326700476,1715261442016,-34611.13974414,0.00013,2]
[326700478,1715261442904,-4077.14185465,0.00013,2]
[326700479,1715261442916,-3171.67834026,0.00013,2]
[326700490,1715261443925,-904749.79828354,0.00013,2]
[326700491,1715261443937,-39912.25572739,0.00013,2]
[326700492,1715261445456,-325.48505657,0.00013,2]
[326700493,1715261445468,-2595.58041615,0.00013,2]
[326700494,1715261445481,-12460.92464597,0.00013,2]
[326700495,1715261445492,-3191.5174042,0.00013,2]
[326700496,1715261445504,-3397.76989014,0.00013,2]
[326700497,1715261445516,-1117.63928077,0.00013,2]
[326700498,1715261445527,-358.13843587,0.00013,2]
[326700499,1715261445540,-319.06,0.00013,2]
[326700500,1715261445551,-46615.38469206,0.00013,2]
[326700501,1715261445563,-3507.23,0.00013,2]
[326700502,1715261445577,-7654.94689073,0.00013,2]
[326700503,1715261446506,-970.06303279,0.00012999,2]
[326700505,1715261446516,-677.02839966,0.00013,2]
[326700507,1715261446528,-3444.1380728,0.00013,2]
[326700510,1715261446539,-3024.13162565,0.00013,2]
[326700515,1715261447333,-1123.52599367,0.00013,2]
[326700516,1715261447345,-1262.37049842,0.00013,2]
[326700517,1715261447357,-47599.06833114,0.00013,2]
[326700518,1715261447372,-150782.5150846,0.00013,2]
[326700519,1715261447384,-5456.68684212,0.00013,2]
[326700520,1715261447935,-34509.01521247,0.00013,2]
[326700521,1715261447947,-4331.67504,0.00013,2]
[326700522,1715261447959,-4030.75897368,0.00013,2]
[326700523,1715261447970,-1345.62332048,0.00013,2]
[326700533,1715262024353,-515.6795376,0.0001095,2]
[326700534,1715262024378,-538.95357639,0.00010951,2]
[326700535,1715262024411,-641.32,0.00010959,2]
[326700536,1715262024450,-168.83467771,0.00010977,2]
[326700537,1715262024477,-2135.2122083,0.00011077,2]
[326700538,1715262025033,-4000.0,0.00011077,2]
[326700539,1715262025429,-1372.47215355,0.00011077,2]
[326700540,1715262025453,-1747.3596203,0.00011078,2]
[326700541,1715262025479,-880.16822615,0.00011771,2]
[326700542,1715262025872,-737.75177385,0.00011771,2]
[326700543,1715262025898,-3262.24822615,0.000118,2]
[326700544,1715262026276,-4000.0,0.000118,2]
[326700545,1715262026692,-154.77224368,0.000118,2]
[326700546,1715262026716,-165.31,0.0001182,2]
[326700547,1715262026740,-740.18,0.00011854,2]
[326700548,1715262026769,-2297.31,0.00011887,2]
[326700549,1715262026796,-158.28,0.00011887,2]
[326700550,1715262026819,-484.14775632,0.00012,2]
[326700551,1715262027102,-4000.0,0.00012,2]
[326700552,1715262027845,-4000.0,0.00012,2]
[326700553,1715262028584,-4000.0,0.00012,2]
[326700555,1715262029254,-2063.44767953,0.00012,2]
[326700556,1715262029279,-562.99,0.00012,2]
[326700558,1715262032874,-1000.0,0.00012486,2]
[326700559,1715262032895,-9761.31,0.00012486,2]
[326700560,1715262032918,-158.2,0.00012492,2]
[326700561,1715262032942,-158.2,0.00012557,2]
[326700562,1715262032962,-1280.12,0.00012583,2]
[326700563,1715262032984,-861.12,0.00012583,2]
[326700564,1715262033009,-180.87,0.00012583,2]
[326700565,1715262033031,-499.99,0.00012583,2]
[326700566,1715262033060,-2780.38,0.00012583,2]
[326700567,1715262033092,-158.2,0.00012622,2]
[326700568,1715262033115,-807.56024817,0.00012654,2]
[326700569,1715262033138,-158.2,0.00012687,2]
[326700570,1715262033161,-250.0,0.00012697,2]
[326700571,1715262033185,-158.2,0.00012752,2]
[326700572,1715262077577,1913.04,0.0001272,2]
[326700573,1715262086065,2545.14684972,9e-05,2]
[326700574,1715262088708,210.50183125,0.00012,2]
[326700575,1715262092915,3500.3496962,0.00012717,2]
[326700576,1715262115730,200.0,0.0001272,2]
[326700577,1715262133066,23418.61137466,0.0001272,2]
[326700720,1715262632910,-515.6795376,0.0001237,2]
[326700722,1715262632924,-28.3404624,0.0001237,2]
[326700724,1715262632940,-615.25441392,0.0001237,2]
[326700725,1715262632952,-3696.30710662,0.0001237,2]
[326700726,1715262632964,-3190.62726287,0.0001237,2]
[326700727,1715262632974,-791.19,0.00012371,2]
[326700728,1715262632984,-200.0,0.00012371,2]
[326700729,1715262632994,-1078.28,0.00012375,2]
[326700730,1715262633004,-250.0,0.00012406,2]
[326700731,1715262633014,-9784.58767397,0.00012429,2]
[326700732,1715262633026,-5102.55447251,0.00012429,2]
[326700733,1715262633038,-9012.85785352,0.00012429,2]
[326700734,1715262633048,-500.0,0.00012429,2]
[326700735,1715262633058,-300.0,0.00012436,2]
[326700736,1715262633068,-160.27,0.00012436,2]
[326700737,1715262633078,-3714.23,0.00012437,2]
[326700738,1715262633088,-363.69,0.00012492,2]
[326700739,1715262633098,-63020.69888954,0.0001272,2]
[326700740,1715262633110,-16118.9839229,0.0001272,2]
[326700741,1715262633120,-150.0,0.00012849,2]
[326700742,1715262633130,-183.78119778,0.00012869,2]
[326700743,1715262633140,-1173.46765146,0.0001287,2]
[326700744,1715262633150,-36835.0775,0.000129,2]
[326700745,1715262633160,-1467.31631766,0.000129,2]
[326700746,1715262633174,-521.8486234,0.000129,2]
[326700747,1715262633183,-3660.6009577,0.000129,2]
[326700748,1715262633193,-1354.03543352,0.000129,2]
[326700749,1715262633202,-223.06160354,0.00012998,2]
[326700750,1715262633212,-293.97796203,0.00012998,2]
[326700751,1715262633222,-774.52375001,0.00012998,2]
[326700752,1715262633232,-829.99220016,0.00012998,2]
[326700753,1715262633242,-2218.37398119,0.00012998,2]
[326700754,1715262633252,-155.7920356,0.00012999,2]
[326700755,1715262633262,-717.15429233,0.00012999,2]
[326700756,1715262633272,-654.45564163,0.00012999,2]
[326700757,1715262633282,-197108.91361165,0.00013,2]
[326700758,1715262633291,-4302.20282624,0.00013,2]
[326700759,1715262633301,-149283.49929927,0.00013,2]
[326700760,1715262633313,-1066.29448189,0.00013,2]
[326700761,1715262633326,-122745.00000006,0.00013,2]
[326700762,1715262633338,-818.82444517,0.00013,2]
[326700763,1715262633349,-555.59877824,0.00013,2]
[326700765,1715262633682,-333.00794755,0.00013,2]
[326700767,1715262633694,-1432.68764726,0.00013,2]
[326700769,1715262633707,-1226.46804,0.00013,2]
[326700771,1715262633718,-350.0,0.00013,2]
[326700796,1715262633954,-2244.75821429,0.00013,2]
[326700798,1715262633966,-6014.45686953,0.00013,2]
[326700799,1715262633978,-279.69657276,0.00013,2]
[326700800,1715262633989,-1098.8377003,0.00013,2]
[326700801,1715262634002,-14412.40924395,0.00013,2]
[326700864,1715262639308,-17776.5827603,0.00013,2]
[326700868,1715262639321,-7645.1978705,0.00013,2]
[326700874,1715262639335,-51574.71024599,0.00013,2]
[326700951,1715262641063,-1181.22,0.00013,2]
[326700969,1715262642411,-355.0,0.00013,2]
[326700974,1715262642454,-263.91281523,0.00013,2]
[326700993,1715262644560,-312.90828622,0.000129,2]
[326701031,1715262644764,-328.41171378,0.00013,2]
[326701032,1715262644778,-904749.79828354,0.00013,2]
[326701089,1715262647691,-515.6795376,0.00012999,2]
[326701093,1715262647701,-4744.61244633,0.00013,2]
[326701096,1715262647714,-318.887502,0.00013,2]
[326701101,1715262647726,-255.45538684,0.00013,2]
[326701102,1715262647744,-9474.55386628,0.00013,2]
[326701105,1715262647756,-895.75815995,0.00013,2]
[326701107,1715262647767,-889.14929002,0.00013,2]
[326701134,1715263788555,-177.68872852,9.144e-05,2]
[326701135,1715263788576,-538.95357639,9.145e-05,2]
[326701136,1715263788597,-515.6795376,9.146e-05,2]
[326701137,1715263788619,-401.43706223,9.146e-05,2]
[326701138,1715263788639,-366.24109526,9.146e-05,2]
[326701139,1715263789405,-841.0094583,9.146e-05,2]
[326701140,1715263791816,150.0,9.145e-05,2]
[326701141,1715263791847,150.0,9.145e-05,2]
[326701142,1715263791872,150.0,9.145e-05,2]